bitfinex/quotes_ETHUSD_20251122
["timestamp","ask_amount","ask_price","bid_price","bid_amount"]
[1763783298808,0.87881986,2752.1,2752.0,0.001]
[1763783299097,2.15725404,2752.1,2752.0,0.001]
[1763783300791,4.54080458,2752.1,2752.0,0.001]
[1763783301699,1.2502614,2752.1,2752.0,0.001]
[1763783301890,0.8889614,2752.1,2752.0,0.001]
[1763783306084,1.2502614,2752.1,2752.0,0.001]
[1763783306818,1.27029264,2752.4,2752.0,0.4725]
[1763783306996,0.81680987,2752.3,2752.0,0.4725]
[1763783307192,0.002,2752.1,2752.0,0.4725]
[1763783307396,0.3583,2752.1,2752.0,0.001]
[1763783307594,4.53024718,2752.1,2752.0,0.001]
[1763783307793,1.31249664,2752.0,2751.9,0.001]
[1763783307981,1.31249664,2752.0,2751.7,0.001]
[1763783307982,10.93355372,2751.8,2751.7,0.001]
[1763783308179,12.58132763,2751.8,2751.7,0.001]
[1763783308383,12.58132763,2751.8,2750.2,0.4648]
[1763783308384,0.405504,2751.4,2750.2,0.4648]
[1763783308616,0.90699264,2750.9,2750.2,0.4648]
[1763783308820,2.38355054,2751.0,2750.2,0.4648]
[1763783309027,2.38355054,2751.0,2749.7,0.4648]
[1763783309028,0.3865,2750.3,2749.7,0.4648]
[1763783309189,0.3865,2750.3,2749.4,0.4648]
[1763783309190,2.38355054,2750.4,2749.8,0.4648]
[1763783309389,0.90699264,2750.6,2749.8,0.4648]
[1763783309719,0.57069649,2750.3,2749.8,0.4648]
[1763783309897,0.57069649,2750.3,2749.8,0.74963505]
[1763783310083,0.4772,2750.2,2749.6,0.4648]
[1763783310284,1.38419264,2750.2,2749.6,0.4648]
[1763783310489,1.38419264,2750.2,2749.2,2.38355054]
[1763783310490,0.90699264,2750.1,2749.5,0.4648]
[1763783311024,0.4772,2750.1,2749.5,0.4648]
[1763783315750,0.57069649,2750.3,2750.0,0.493]
[1763783316244,0.57069649,2750.3,2750.0,0.9622]
[1763783316451,0.57069649,2750.3,2750.2,0.493]
[1763783316604,0.148,2751.1,2750.2,4.06511856]
[1763783316798,0.6428,2751.1,2750.3,0.4692]
[1763783317331,3.10291856,2751.4,2750.3,0.4692]
[1763783317332,0.4948,2751.4,2750.3,0.4692]
[1763783317535,0.4948,2751.4,2750.4,3.10291856]
[1763783317749,0.1995,2751.5,2750.5,0.4692]
[1763783317902,0.6943,2751.5,2750.5,0.4692]
[1763783318217,1.60129264,2751.5,2750.5,0.4692]
[1763783318424,0.47042112,2751.4,2750.5,0.82641186]
[1763783318732,0.96522112,2751.4,2750.5,0.82641186]
[1763783318927,0.96522112,2751.4,2750.6,0.4692]
[1763783319304,0.4948,2751.4,2750.6,0.4692]
[1763783319833,0.57053666,2751.3,2750.6,0.4692]
[1763783320257,0.57053666,2751.3,2751.2,0.6252]
[1763783320406,0.57053666,2751.3,2751.2,0.493]
[1763783320606,0.83743666,2751.3,2750.5,3.46013042]
[1763783320829,0.83743666,2751.3,2750.8,0.4692]
[1763783321417,0.57053666,2751.3,2751.2,0.6787]
[1763783321940,0.57053666,2751.3,2751.2,1.1479]
[1763783322344,0.57053666,2751.3,2751.2,0.493]
[1763783322507,0.83743666,2751.3,2750.9,0.4692]
[1763783322709,1.33003666,2751.3,2750.7,0.4692]
[1763783322935,0.83743666,2751.3,2750.7,0.4692]
[1763783323136,0.57053666,2751.3,2751.2,0.493]
[1763783323344,0.2669,2750.8,2749.6,0.90699264]
[1763783323642,0.4926,2751.2,2749.4,0.1857]
[1763783323643,0.4926,2751.2,2750.0,3.10291856]
[1763783323847,0.4926,2751.2,2750.1,0.03636231]
[1763783324007,0.57053666,2751.3,2750.2,3.10291856]
[1763783324208,1.14107332,2751.3,2750.4,3.10291856]
[1763783324444,1.14107332,2751.3,2750.4,3.1392769]
[1763783324614,0.57053666,2751.3,2750.5,0.4692]
[1763783324963,0.57053666,2751.3,2750.5,0.83004782]
[1763783325137,0.57053666,2751.3,2750.5,0.4692]
[1763783325342,0.57053666,2751.3,2750.6,0.4692]
[1763783326209,0.57053666,2751.3,2751.2,0.493]
[1763783326842,0.57053666,2751.3,2750.9,0.4692]
[1763783327423,0.57053666,2751.3,2750.6,0.4692]
[1763783327765,0.57053666,2751.3,2751.2,0.6787]
[1763783328116,0.57053666,2751.3,2751.2,1.1479]
[1763783328340,0.002,2751.6,2751.2,1.1479]
[1763783328643,0.4543,2751.3,2750.8,0.4692]
[1763783328873,0.4543,2751.3,2750.4,0.4702]
[1763783329060,0.002,2751.6,2751.2,0.493]
[1763783329439,0.4968,2751.6,2751.2,0.493]
[1763783329639,0.4968,2751.6,2750.8,0.4692]
[1763783330795,0.2669,2750.9,2750.4,0.001]
[1763783331384,0.57056823,2750.8,2750.4,0.001]
[1763783332790,0.57056823,2750.8,2750.7,0.493]
[1763783333001,1.02486823,2750.8,2750.4,0.001]
[1763783333148,1.02486823,2750.8,2750.4,0.4702]
[1763783333558,1.02486823,2750.8,2750.4,0.001]
[1763783334287,1.33186823,2750.8,2750.4,0.001]
[1763783334996,1.02486823,2750.8,2750.4,0.001]
[1763783335175,0.307,2750.5,2750.4,0.001]
[1763783335841,0.4528,2750.7,2750.4,0.001]
[1763783336043,0.57056823,2750.8,2750.4,0.001]
[1763783336244,0.57056823,2750.8,2750.4,0.4702]
[1763783336675,0.57056823,2750.8,2750.4,0.001]
[1763783337202,0.2669,2750.5,2750.4,0.001]
[1763783337686,0.7595,2750.5,2750.4,0.001]
[1763783338245,0.2669,2750.5,2750.4,0.001]
[1763783338987,0.7595,2750.5,2750.4,0.001]
[1763783339392,0.74198715,2750.5,2750.4,0.001]
[1763783339762,0.24938715,2750.5,2750.4,0.001]
[1763783340629,0.74198715,2750.5,2750.4,0.001]
[1763783341484,0.405504,2751.0,2750.4,0.001]
[1763783341485,0.4926,2750.9,2750.4,0.001]
[1763783341682,0.570643,2750.5,2750.4,0.494]
[1763783341979,0.2496,2750.5,2750.4,0.001]
[1763783342180,1.31262174,2750.5,2750.4,0.001]
[1763783343498,0.742,2750.5,2750.4,0.001]
[1763783344820,0.405504,2750.7,2750.4,0.001]
[1763783344987,0.900304,2750.7,2750.4,0.001]
[1763783345319,0.2496,2750.5,2750.4,0.001]
[1763783346024,0.4995,2751.1,2750.4,0.9539]
[1763783346323,0.33849924,2751.0,2750.6,0.458]
[1763783346723,0.33849924,2751.0,2750.6,0.9529]
[1763783346921,0.74400324,2751.1,2750.6,0.9529]
[1763783347221,0.4995,2750.9,2750.4,0.001]
[1763783347408,0.4995,2751.0,2750.4,0.001]
[1763783347636,0.4995,2751.2,2750.4,0.4959]
[1763783347844,0.33848066,2751.1,2750.4,0.4959]
[1763783348020,0.83798066,2751.1,2750.4,0.4959]
[1763783348345,0.95243066,2751.0,2750.4,0.001]
[1763783348546,0.4995,2750.9,2750.4,0.001]
[1763783348722,0.04544132,2750.8,2750.4,0.001]
[1763783349320,2.52479971,2751.2,2750.4,0.4959]
[1763783349535,1.40649264,2751.2,2750.4,0.4959]
[1763783350531,0.4995,2751.1,2750.4,0.4959]
[1763783351742,0.90699264,2751.0,2750.4,0.4959]
[1763783353837,0.002,2751.6,2750.9,0.458]
[1763783354032,0.002,2751.6,2751.1,2.38535524]
[1763783354233,0.002,2751.6,2751.1,1.26226105]
[1763783354628,0.002,2751.6,2751.2,0.4949]
[1763783355185,0.4898,2751.3,2750.4,0.001]
[1763783355386,0.4898,2751.3,2750.5,0.4949]
[1763783355387,3.29484788,2751.2,2750.5,0.4949]
[1763783355545,0.90949264,2751.2,2750.4,0.001]
[1763783355744,0.4995,2751.1,2750.4,0.23963552]
[1763783356260,2.88485524,2751.1,2750.4,0.001]
[1763783357090,2.38535524,2750.7,2750.4,0.001]
[1763783357382,0.90699264,2750.9,2750.4,0.001]
[1763783357579,0.4995,2750.8,2750.4,0.001]
[1763783358153,0.90699264,2750.9,2750.4,0.001]
[1763783358369,0.78061447,2751.2,2750.8,0.458]
[1763783358682,0.45724624,2751.1,2750.8,0.458]
[1763783358850,0.2449,2750.9,2750.5,0.4949]
[1763783359249,0.2449,2750.9,2750.4,0.001]
[1763783359455,0.2449,2750.9,2750.4,0.4959]
[1763783360069,0.2449,2750.9,2750.4,0.001]
[1763783360070,0.54244132,2750.8,2750.4,0.001]
[1763783360381,0.005,2750.5,2750.4,0.001]
[1763783360750,0.497,2750.8,2750.4,0.001]
[1763783361969,0.2474,2750.5,2750.4,0.001]
[1763783362478,0.7419,2750.5,2750.4,0.001]
[1763783364199,4.03491343,2750.5,2750.4,0.001]
[1763783364886,1.64889264,2750.5,2750.4,0.001]
[1763783365262,1.9884405,2750.5,2750.4,0.001]
[1763783365462,2.19182885,2750.5,2750.4,0.001]
[1763783366998,0.95028835,2750.5,2749.5,0.4949]
[1763783367291,0.0475,2750.2,2749.5,0.4949]
[1763783367699,0.70288835,2750.5,2750.1,0.458]
[1763783368594,0.20338835,2750.5,2750.1,0.458]
[1763783368987,0.20338835,2750.5,2750.1,1.1479]
[1763783369694,0.20338835,2750.5,2750.1,0.458]
[1763783369896,0.70288835,2750.5,2750.1,0.458]
[1763783370668,1.27358766,2750.5,2750.1,0.458]
[1763783371276,0.77408766,2750.5,2750.1,0.458]
[1763783371473,0.57069931,2750.5,2750.4,0.458]
[1763783371810,0.57069931,2750.5,2750.1,0.6899]
[1763783372102,0.57069931,2750.5,2750.4,0.458]
[1763783372303,0.7816335,2750.8,2750.4,0.458]
[1763783372504,0.7816335,2750.9,2750.4,0.9529]
[1763783372704,0.7816335,2751.0,2750.4,0.9529]
[1763783372870,0.55808927,2750.9,2750.4,0.9529]
[1763783373224,0.71831261,2750.9,2750.4,0.9529]
[1763783373383,0.002,2751.2,2750.4,0.458]
[1763783373578,1.24628693,2751.2,2750.5,0.4949]
[1763783373779,1.12101823,2751.1,2750.5,0.4949]
[1763783374082,0.4898,2750.6,2750.1,0.195]
[1763783374288,0.003,2750.5,2750.1,0.195]
[1763783374483,0.003,2750.5,2750.1,0.6899]
[1763783374706,0.003,2750.5,2750.1,0.195]
[1763783374897,0.003,2750.5,2749.7,3.79]
[1763783374898,0.003,2750.5,2749.9,0.4949]
[1763783375102,0.003,2750.5,2749.9,0.92339]
[1763783375285,0.57067243,2750.4,2749.9,0.92339]
[1763783375490,0.57067243,2750.4,2750.0,0.4748]
[1763783376680,0.3026,2750.1,2749.7,3.79]
[1763783377008,0.3026,2750.1,2749.7,4.2648]
[1763783377199,0.3026,2750.1,2749.7,4.69128]
[1763783377400,0.3026,2750.1,2749.8,0.4748]
[1763783377804,1.05987243,2750.4,2749.8,0.4748]
[1763783378201,0.53464958,2750.3,2749.5,4.2648]
[1763783378405,0.04545123,2750.2,2749.5,0.4748]
[1763783378714,0.4892,2750.3,2749.5,0.4748]
[1763783378938,0.68588651,2750.2,2749.5,0.4748]
[1763783382132,0.19668651,2750.2,2749.5,0.4748]
[1763783382426,0.4892,2750.2,2749.5,0.4748]
[1763783385757,0.57073036,2750.3,2750.1,0.4558]
[1763783385934,0.002,2750.4,2750.1,0.4558]
[1763783386518,0.4912,2750.4,2750.1,0.4558]
[1763783387056,0.002,2750.4,2750.1,0.4558]
[1763783387261,0.002,2750.4,2750.1,1.1261]
[1763783388531,0.002,2750.4,2750.3,0.4558]
[1763783388877,0.002,2750.4,2750.3,0.9306]
[1763783389165,0.002,2750.4,2750.3,1.28181897]
[1763783390843,0.002,2750.4,2750.3,0.4558]
[1763783392780,0.002,2750.4,2750.3,0.9306]
[1763783394698,0.002,2750.4,2750.3,0.4558]
[1763783396188,0.002,2750.4,2750.3,0.9306]
[1763783399399,0.57261263,2750.4,2750.3,0.9306]
[1763783399699,0.002,2750.4,2750.3,0.9306]
[1763783400765,0.002,2750.4,2750.3,0.96695966]
[1763783401011,0.002,2750.4,2750.3,1.4176125]
[1763783401193,0.002,2750.4,2750.3,1.45397216]
[1763783401668,0.002,2750.4,2750.3,5.24397216]
[1763783402068,0.002,2750.4,2750.3,5.2076125]
[1763783402410,0.002,2750.4,2750.3,5.35333225]
[1763783402568,0.002,2750.4,2750.3,5.2076125]
[1763783403003,0.002,2750.4,2750.3,1.4176125]
[1763783403173,0.002,2750.4,2750.3,0.9306]
[1763783403908,0.002,2750.4,2750.3,0.96695966]
[1763783404114,0.002,2750.4,2750.3,0.9306]
[1763783404406,0.002,2750.4,2750.3,0.96695966]
[1763783404906,0.002,2750.4,2750.3,0.9306]
[1763783405070,0.002,2750.4,2750.3,1.41397653]
[1763783405271,0.002,2750.4,2750.3,1.45033619]
[1763783405473,0.002,2750.4,2750.3,5.24033619]
[1763783406114,0.002,2750.4,2750.3,6.55283283]
[1763783406408,0.002,2750.4,2750.3,6.51647317]
[1763783406611,0.002,2750.7,2750.5,0.405504]
[1763783406810,0.002,2750.7,2750.6,5.53321767]
[1763783407016,0.002,2750.7,2750.6,17.23367044]
[1763783407198,0.002,2750.7,2750.6,15.09726474]
[1763783407399,0.002,2750.7,2750.6,13.89641874]
[1763783408012,0.002,2750.7,2750.6,13.20484874]
[1763783408329,0.002,2750.7,2750.6,6.59171374]
[1763783408622,0.002,2750.7,2750.6,1.97705577]
[1763783409033,0.002,2750.7,2750.6,6.59171374]
[1763783409725,0.002,2750.7,2750.6,6.18620974]
[1763783409929,0.002,2750.7,2750.6,6.3319125]
[1763783410221,0.002,2750.7,2750.6,6.3682682]
[1763783410637,0.002,2751.2,2750.6,10.3311522]
[1763783410818,0.002,2751.2,2751.1,5.67866197]
[1763783410995,0.002,2751.2,2751.1,6.20731106]
[1763783411195,0.002,2751.5,2751.2,1.31249664]
[1763783411397,0.002,2751.5,2751.4,4.58986933]
[1763783411636,0.002,2751.5,2751.4,16.99469497]
[1763783411840,0.002,2751.5,2751.4,17.52906447]
[1763783412033,0.002,2751.5,2751.4,17.29769547]
[1763783412924,0.002,2751.5,2751.4,17.44333882]
[1763783415014,0.002,2751.5,2751.4,21.23333882]
[1763783415638,0.002,2751.5,2751.4,14.19437182]
[1763783415840,0.002,2751.5,2751.4,11.62427482]
[1763783416360,0.002,2751.5,2751.4,39.68272282]
[1763783416662,0.002,2751.5,2751.4,37.08441882]
[1763783416868,0.002,2751.5,2751.4,31.42914682]
[1763783417163,0.002,2751.5,2751.4,23.72816582]
[1763783417359,0.002,2751.5,2751.4,11.62427482]
[1763783417662,0.002,2751.5,2751.4,26.13059082]
[1763783417861,0.002,2751.5,2751.4,24.92067782]
[1763783418441,0.002,2751.5,2751.4,36.02577182]
[1763783418841,0.002,2751.5,2751.4,33.33170682]
[1763783419476,0.002,2751.5,2751.4,32.90658682]
[1763783419778,0.002,2751.5,2751.4,39.37658682]
[1763783420447,0.002,2751.5,2751.4,41.87516282]
[1763783420643,0.002,2751.6,2751.5,3.788]
[1763783420848,0.002,2751.6,2751.5,33.8170416]
[1763783421086,0.002,2751.6,2751.5,21.76761179]
[1763783421264,0.002,2751.8,2751.7,29.12159497]
[1763783421427,0.002,2751.8,2751.7,36.08916197]
[1763783422049,0.002,2751.8,2751.7,36.2347645]
[1763783422250,0.002,2751.8,2751.7,37.69617065]
[1763783422449,0.002,2751.8,2751.7,39.93087065]
[1763783422652,0.002,2752.1,2751.7,33.06695065]
[1763783422878,0.002,2752.1,2751.8,32.41783649]
[1763783423083,0.002,2752.1,2751.8,13.25990264]
[1763783423303,0.002,2752.1,2751.8,15.72433031]
[1763783423508,0.002,2752.1,2751.8,26.23851631]
[1763783423797,0.002,2752.1,2751.8,25.59572431]
[1763783424696,0.002,2752.1,2751.8,27.65612431]
[1763783425004,0.002,2752.1,2751.8,31.37009781]
[1763783425202,0.002,2752.1,2751.8,30.95471281]
[1763783425706,0.002,2752.1,2751.8,31.37006681]
[1763783426811,0.002,2752.1,2751.8,32.03353081]
[1763783426983,0.002,2752.1,2751.8,18.44719981]
[1763783427787,0.002,2752.1,2751.8,44.92989781]
[1763783428498,0.002,2752.1,2752.0,8.450494]
[1763783428678,0.002,2752.1,2752.0,14.99150668]
[1763783428876,0.002,2752.1,2752.0,12.82886968]
[1763783429520,0.002,2752.1,2752.0,12.97447539]
[1763783429915,0.002,2752.1,2752.0,10.96491839]
[1763783430116,0.002,2752.1,2752.0,10.87812239]
[1763783430845,0.8342,2752.1,2752.0,3.93160571]
[1763783431698,0.8342,2752.1,2752.0,0.14560571]
[1763783432210,0.8342,2752.1,2751.5,3.7139735]
[1763783432423,0.4664,2752.0,2751.5,3.7139735]
[1763783432600,0.5474,2751.6,2751.5,3.7139735]
[1763783433020,1.0128,2751.6,2751.5,4.63277085]
[1763783433208,0.3668,2751.6,2751.5,4.63277085]
[1763783433412,0.1806,2751.9,2751.5,5.10947085]
[1763783433723,0.1806,2751.9,2751.7,3.7139735]
[1763783433724,0.647,2751.9,2751.7,3.7139735]
[1763783434097,0.002,2752.1,2751.7,3.7139735]
[1763783434314,0.4684,2752.1,2751.8,0.37139735]
[1763783434711,0.002,2752.1,2751.8,0.37139735]
[1763783435026,0.002,2752.2,2752.1,5.187607]
[1763783435321,0.002,2752.2,2752.1,3.29296494]
[1763783435527,0.002,2752.2,2752.1,7.40561166]
[1763783435734,0.002,2752.2,2752.1,6.66260748]
[1763783435908,0.002,2752.2,2752.1,6.69894336]
[1763783436300,0.002,2752.2,2752.1,16.00450636]
[1763783436509,0.002,2752.2,2752.1,16.45340975]
[1763783436696,0.002,2752.5,2752.1,16.45340975]
[1763783436899,0.002,2752.5,2752.3,14.46516514]
[1763783437198,0.002,2752.9,2752.5,12.380276]
[1763783437529,0.002,2752.9,2752.5,35.66261677]
[1763783438046,0.002,2752.9,2752.5,14.15259277]
[1763783438413,0.002,2752.9,2752.5,14.28443277]
[1763783438614,0.002,2752.9,2752.5,15.80357531]
[1763783438815,0.002,2752.9,2752.5,6.87259981]
[1763783439026,0.002,2752.9,2752.5,9.10376137]
[1763783439228,0.002,2752.9,2752.5,9.06743077]
[1763783440222,0.002,2752.9,2752.5,4.7222775]
[1763783440623,0.002,2752.9,2752.5,5.1773775]
[1763783441457,0.002,2752.9,2752.5,5.3229583]
[1763783441692,0.002,2752.9,2752.5,5.94595339]
[1763783443818,0.4994,2752.6,2752.5,4.88805339]
[1763783444040,0.836,2752.6,2752.5,4.76654694]
[1763783444273,0.836,2752.6,2752.5,0.1455808]
[1763783446005,0.836,2752.6,2751.9,3.7139735]
[1763783446205,0.4638,2752.5,2751.9,3.7139735]
[1763783446384,0.4638,2752.5,2752.2,0.836]
[1763783446757,0.3699,2752.3,2752.2,0.836]
[1763783447156,0.8327,2752.3,2752.2,0.836]
[1763783453807,0.3699,2752.3,2752.2,0.836]
[1763783454168,0.8327,2752.3,2752.2,0.836]
[1763783455381,0.8327,2752.3,2752.1,0.001]
[1763783455713,0.4684,2752.2,2752.1,0.001]
[1763783456202,0.4684,2752.2,2752.1,0.8337]
[1763783457915,0.4684,2752.2,2752.1,0.001]
[1763783458224,0.4684,2752.2,2751.8,0.001]
[1763783458225,0.3653,2752.0,2751.8,0.001]
[1763783458523,0.1883,2751.9,2751.8,0.001]
[1763783458874,0.6521,2751.9,2751.8,0.001]
[1763783460375,1.55909264,2751.9,2751.6,0.001]
[1763783460592,0.3622,2751.7,2751.6,0.001]
[1763783460799,0.3622,2751.7,2751.5,0.001]
[1763783461113,0.4756,2751.6,2751.5,0.001]
[1763783461997,1.04600075,2751.6,2751.5,0.001]
[1763783462201,0.58220075,2751.6,2751.5,0.001]
[1763783463234,0.1801,2751.9,2751.5,0.85229735]
[1763783463408,0.1801,2751.9,2751.7,3.7139735]
[1763783463734,0.4638,2751.8,2751.5,4.56627085]
[1763783463930,0.3704,2751.6,2751.5,0.001]
[1763783464097,0.8332,2751.6,2751.5,0.001]
[1763783470649,0.8352,2751.6,2751.5,0.001]
[1763783474642,0.3724,2751.6,2751.5,0.001]
[1763783476086,0.8352,2751.6,2751.5,0.001]
[1763783476288,0.3724,2751.6,2751.5,0.001]
[1763783476858,0.8352,2751.6,2751.5,0.001]
[1763783479779,1.40562158,2751.6,2751.5,0.001]
[1763783480361,0.94282158,2751.6,2751.5,0.001]
[1763783481282,0.57242158,2751.6,2751.5,0.4825]
[1763783482478,0.94372158,2751.6,2751.5,0.001]
[1763783483296,1.40562158,2751.6,2751.5,0.001]
[1763783487193,1.31249664,2751.5,2751.2,0.001]
[1763783487363,0.405504,2751.2,2750.9,0.001]
[1763783487563,0.3646,2751.0,2750.9,0.001]
[1763783487993,0.8296,2751.0,2750.9,0.001]
[1763783489170,0.465,2751.3,2750.9,0.001]
[1763783489997,1.03549084,2751.3,2750.9,0.001]
[1763783490291,0.465,2751.2,2750.9,0.001]
[1763783490692,0.57049084,2751.3,2750.9,0.001]
[1763783490896,0.57049084,2751.3,2751.2,0.4815]
[1763783491265,0.57049084,2751.3,2751.2,0.9726]
[1763783491461,0.002,2751.6,2751.2,0.9726]
[1763783492076,0.002,2751.6,2751.2,0.4815]
[1763783492295,0.002,2751.6,2751.3,0.4911]
[1763783492982,0.3692,2751.4,2751.1,0.1834]
[1763783493166,0.3692,2751.4,2751.1,0.62151263]
[1763783493373,0.467,2751.6,2751.1,0.62151263]
[1763783493694,0.467,2751.6,2751.1,1.11261263]
[1763783494498,0.002,2751.6,2751.5,0.4815]
[1763783495399,0.57237944,2751.6,2751.5,0.4815]
[1763783497599,0.57237944,2751.6,2751.5,0.9652]
[1763783499222,0.57237944,2751.6,2751.5,0.4815]
[1763783499398,1.05227944,2751.6,2751.1,3.70562631]
[1763783499599,1.38807944,2751.6,2751.1,0.37066263]
[1763783499799,0.3176314,2751.5,2750.9,0.4847]
[1763783500005,0.3176314,2751.5,2751.0,3.70562631]
[1763783500209,0.3176314,2751.5,2751.0,0.4837]
[1763783500524,0.57237944,2751.6,2751.0,0.4837]
[1763783500903,0.57237944,2751.6,2750.9,0.4847]
[1763783501921,0.57237944,2751.6,2750.9,0.001]
[1763783501922,1.06847944,2751.6,2750.9,0.001]
[1763783502309,0.4961,2751.5,2750.9,0.001]
[1763783503019,0.3018,2751.0,2750.9,0.001]
[1763783505023,0.7959,2751.0,2750.9,0.001]
[1763783507119,0.4961,2751.4,2750.9,0.001]
[1763783507319,0.3018,2751.0,2750.9,0.001]
[1763783508503,0.3037,2751.0,2750.9,0.001]
[1763783509311,0.7959,2751.0,2750.9,0.001]
[1763783516007,0.3037,2751.0,2750.9,0.001]
[1763783516210,0.3056,2751.0,2750.9,0.001]
[1763783516437,5.40861895,2751.0,2750.9,0.001]
[1763783518354,1.70299264,2751.0,2750.9,0.001]
[1763783518533,2.27359486,2751.0,2750.9,0.001]
[1763783518931,1.9348956,2751.0,2750.9,0.001]
[1763783520453,5.64052191,2751.0,2750.9,0.001]
[1763783521252,1.9348956,2751.0,2750.9,0.001]
[1763783521452,5.64052191,2751.0,2750.9,0.001]
[1763783522058,6.21115343,2751.0,2750.9,0.001]
[1763783522915,2.01512712,2751.0,2750.9,0.001]
[1763783523531,2.50552712,2751.0,2750.9,0.001]
[1763783527135,6.21115343,2751.0,2750.9,0.001]
[1763783527339,2.50552712,2751.0,2750.9,0.001]
[1763783527917,2.01512712,2751.0,2750.9,0.001]
[1763783528116,1.47762416,2751.0,2750.9,0.4951]
[1763783528623,1.22149264,2751.0,2750.9,0.001]
[1763783529560,1.70309264,2751.0,2750.9,0.001]
[1763783529759,1.74853066,2751.0,2750.9,0.001]
[1763783529938,1.70309264,2751.0,2750.9,0.001]
[1763783531725,1.22149264,2751.0,2750.9,0.001]
[1763783531926,0.90699264,2751.0,2750.9,0.4951]
[1763783533058,1.22149264,2751.0,2750.9,0.001]
[1763783535250,1.70309264,2751.0,2750.9,0.001]
[1763783536208,0.90699264,2751.0,2750.9,0.4951]
[1763783537499,0.90699264,2751.0,2750.9,0.9735]
[1763783537803,1.22149264,2751.0,2750.9,0.001]
[1763783537974,5.40871895,2751.0,2750.9,0.001]
[1763783538700,6.53419405,2751.0,2750.9,0.001]
[1763783538998,6.57963207,2751.0,2750.9,0.001]
[1763783542702,7.15026851,2751.0,2750.9,0.001]
[1763783542894,6.53419405,2751.0,2750.9,0.001]
[1763783543075,6.57963207,2751.0,2750.9,0.001]
[1763783543499,6.57942207,2751.0,2750.9,0.001]
[1763783544384,6.98492607,2751.0,2750.9,0.001]
[1763783544927,17.37821625,2751.0,2750.9,0.001]
[1763783545221,12.47846808,2751.0,2750.9,0.001]
[1763783545909,13.04919493,2751.0,2750.9,0.001]
[1763783546214,17.38724893,2751.0,2750.9,0.001]
[1763783546787,16.78440064,2751.0,2750.9,0.001]
[1763783547099,24.73092364,2751.0,2750.9,0.001]
[1763783547623,24.73092364,2751.0,2750.6,0.001]
[1763783547783,16.9577727,2750.7,2750.6,0.001]
[1763783547982,17.7600378,2750.7,2750.6,0.001]
[1763783548182,18.2433378,2750.7,2750.6,0.001]
[1763783548409,27.62958276,2750.7,2750.6,0.001]
[1763783548685,25.56484079,2750.7,2750.6,0.001]
[1763783548881,10.54872764,2750.5,2750.4,0.001]
[1763783549117,11.71807341,2750.5,2750.4,0.001]
[1763783549313,12.20137341,2750.5,2750.4,0.001]
[1763783549515,18.14573041,2750.5,2750.4,0.001]
[1763783549698,14.03665241,2750.5,2750.4,0.001]
[1763783550223,13.05867242,2750.5,2750.4,0.001]
[1763783550382,7.69943042,2750.5,2750.4,0.001]
[1763783550581,6.81062642,2750.5,2750.4,0.001]
[1763783550843,1.69182249,2750.5,2750.4,0.4951]
[1763783550991,0.90699264,2750.5,2750.4,0.9735]
[1763783551183,0.90699264,2750.5,2750.4,0.4951]
[1763783552090,0.90699264,2750.5,2750.4,0.9735]
[1763783552519,0.6737,2750.9,2750.4,0.9735]
[1763783552520,3.7224869,2750.9,2750.4,0.9735]
[1763783552719,0.57072685,2751.0,2750.8,0.4941]
[1763783553035,3.7224869,2751.3,2750.9,0.4941]
[1763783553203,0.90699264,2751.0,2750.9,0.4941]
[1763783553723,3.7224869,2751.1,2750.9,0.4941]
[1763783553918,4.14326559,2751.3,2751.0,0.4941]
[1763783554091,0.90699264,2751.2,2751.0,0.4941]
[1763783554714,3.7244869,2751.5,2751.1,0.9725]
[1763783555020,3.7244869,2751.5,2751.2,0.4941]
[1763783555197,0.90699264,2751.4,2751.2,0.4941]
[1763783556137,4.92947954,2751.3,2750.8,0.459]
[1763783556337,0.91859264,2751.2,2750.8,0.459]
[1763783558010,0.91859264,2751.2,2750.4,0.001]
[1763783558222,0.91859264,2751.2,2750.5,0.466]
[1763783558428,3.76792327,2751.1,2750.5,0.466]
[1763783558736,4.21802327,2751.1,2750.5,0.466]
[1763783559048,0.90699264,2751.1,2751.0,0.4541]
[1763783559203,0.002,2751.5,2751.0,0.9201]
[1763783559408,0.002,2751.5,2751.4,0.4541]
[1763783560406,0.002,2751.5,2751.4,0.9201]
[1763783562116,1.25979264,2751.5,2750.8,0.466]
[1763783562434,0.002,2751.5,2750.8,0.466]
[1763783562633,0.002,2751.5,2751.4,0.4541]
[1763783562932,0.90899264,2751.5,2751.4,0.4541]
[1763783563132,1.25979264,2751.5,2750.4,0.001]
[1763783563337,1.25979264,2751.5,2750.5,0.466]
[1763783564243,0.90699264,2751.3,2750.5,0.466]
[1763783564400,0.9524257,2751.3,2750.5,0.466]
[1763783564806,0.90699264,2751.3,2750.5,0.466]
[1763783566304,0.57057824,2751.2,2750.5,0.466]
[1763783566641,0.90699264,2751.3,2750.5,0.466]
[1763783567939,1.35709264,2751.3,2750.5,0.466]
[1763783568236,0.90899264,2751.5,2751.2,0.4541]
[1763783568439,0.46334795,2751.4,2751.2,0.1822]
[1763783568642,0.46334795,2751.4,2751.2,0.6482]
[1763783568840,0.46334795,2751.4,2751.3,0.4541]
[1763783569037,0.3508,2751.3,2750.4,0.001]
[1763783569239,0.3508,2751.3,2750.7,0.466]
[1763783569240,1.25779264,2751.3,2750.7,0.466]
[1763783570461,1.47955497,2751.5,2751.2,0.6363]
[1763783570757,1.47955497,2751.5,2751.4,0.4541]